[Event "Early-Titled-Tuesday-Blitz-July-09-2024"]
[Site "Chess.com"]
[Date "2024.07.09"]
[Round "1"]
[White "PedroGil25"]
[Black "KnightmareJoker"]
[Result "1-0"]
[WhiteElo "2636"]
[BlackElo "2315"]
[TimeControl "180+1"]
[EndTime "8:06:43 PDT"]
[Termination "PedroGil25 won by checkmate"]

1. e4 {[%clk 0:03:00.9]} 1... e5 {[%clk 0:02:58.8]} 2. Nf3 {[%clk 0:02:56.9]}
2... Nf6 {[%clk 0:02:58.7]} 3. Nc3 {[%clk 0:02:56.7]} 3... Nc6 {[%clk
0:02:57.9]} 4. Bb5 {[%clk 0:02:56.3]} 4... Bb4 {[%clk 0:02:56.8]} 5. d3 {[%clk
0:02:56.4]} 5... d6 {[%clk 0:02:55.4]} 6. O-O {[%clk 0:02:55.9]} 6... O-O {[%clk
0:02:52.8]} 7. Ne2 {[%clk 0:02:55.7]} 7... a6 {[%clk 0:02:50.9]} 8. Ba4 {[%clk
0:02:52.6]} 8... Bg4 {[%clk 0:02:38.6]} 9. Bxc6 {[%clk 0:02:50.9]} 9... bxc6
{[%clk 0:02:37.9]} 10. Ng3 {[%clk 0:02:49.9]} 10... Bc5 {[%clk 0:02:26.2]} 11.
h3 {[%clk 0:02:49.4]} 11... Be6 {[%clk 0:02:23.6]} 12. Bg5 {[%clk 0:02:48.4]}
12... h6 {[%clk 0:02:23]} 13. Bh4 {[%clk 0:02:47.8]} 13... d5 {[%clk 0:01:58]}
14. Nh5 {[%clk 0:02:37.9]} 14... Be7 {[%clk 0:01:36.4]} 15. Nxe5 {[%clk
0:02:30.9]} 15... g5 {[%clk 0:01:19]} 16. Nxc6 {[%clk 0:02:27.5]} 16... Qe8
{[%clk 0:01:18.9]} 17. Nxe7+ {[%clk 0:02:27.9]} 17... Qxe7 {[%clk 0:01:19.5]}
18. Nxf6+ {[%clk 0:02:28]} 18... Qxf6 {[%clk 0:01:20.1]} 19. Bg3 {[%clk
0:02:28.6]} 19... dxe4 {[%clk 0:01:18.2]} 20. dxe4 {[%clk 0:02:29.5]} 20... Qxb2
{[%clk 0:01:16.7]} 21. Qh5 {[%clk 0:02:18.8]} 21... Qg7 {[%clk 0:01:13.5]} 22.
a3 {[%clk 0:02:11.2]} 22... f6 {[%clk 0:01:06.9]} 23. Rab1 {[%clk 0:02:09.4]}
23... Bf7 {[%clk 0:01:06.4]} 24. Qf3 {[%clk 0:02:07.7]} 24... Bg6 {[%clk
0:01:04.8]} 25. Rb7 {[%clk 0:02:05.1]} 25... Rac8 {[%clk 0:01:05.3]} 26. Re1
{[%clk 0:02:02.7]} 26... Qe7 {[%clk 0:01:03.3]} 27. Qc3 {[%clk 0:02:00.3]} 27...
Rfe8 {[%clk 0:00:50.9]} 28. e5 {[%clk 0:01:57.3]} 28... Bf7 {[%clk 0:00:33.7]}
29. f4 {[%clk 0:01:51.9]} 29... Bd5 {[%clk 0:00:31.1]} 30. Rb4 {[%clk
0:01:40.5]} 30... f5 {[%clk 0:00:28.3]} 31. Bf2 {[%clk 0:01:24.7]} 31... c6
{[%clk 0:00:26.3]} 32. Reb1 {[%clk 0:01:20.7]} 32... Rc7 {[%clk 0:00:25]} 33.
Bc5 {[%clk 0:01:18.6]} 33... Qf7 {[%clk 0:00:23.9]} 34. Bd6 {[%clk 0:01:18.6]}
34... Rd7 {[%clk 0:00:21.6]} 35. Rb8 {[%clk 0:01:18.3]} 35... Rdd8 {[%clk
0:00:20.9]} 36. Rxd8 {[%clk 0:01:08.4]} 36... Rxd8 {[%clk 0:00:21.8]} 37. fxg5
{[%clk 0:01:07.9]} 37... hxg5 {[%clk 0:00:21.5]} 38. Qg3 {[%clk 0:01:05.9]}
38... Qg6 {[%clk 0:00:18.9]} 39. Rb7 {[%clk 0:01:04.5]} 39... f4 {[%clk
0:00:18.5]} 40. Qg4 {[%clk 0:01:04.1]} 40... Be6 {[%clk 0:00:17.5]} 41. Qf3
{[%clk 0:01:01.4]} 41... Qxc2 {[%clk 0:00:16.4]} 42. Qh5 {[%clk 0:00:59.6]}
42... f3 {[%clk 0:00:10]} 43. Qxg5+ {[%clk 0:00:59.1]} 43... Kh8 {[%clk
0:00:07.8]} 44. Qg7# {[%clk 0:00:59.4]} 1-0

[Event "Early-Titled-Tuesday-Blitz-July-09-2024"]
[Site "Chess.com"]
[Date "2024.07.09"]
[Round "1"]
[White "Klendi"]
[Black "ArmanGhevondyanchess"]
[Result "0-1"]
[WhiteElo "2418"]
[BlackElo "2752"]
[TimeControl "180+1"]
[EndTime "8:06:44 PDT"]
[Termination "ArmanGhevondyanchess won by resignation"]

1. e4 {[%clk 0:03:00]} 1... c5 {[%clk 0:02:59.9]} 2. c3 {[%clk 0:02:59.6]} 2...
d5 {[%clk 0:03:00]} 3. exd5 {[%clk 0:03:00.5]} 3... Qxd5 {[%clk 0:03:00.8]} 4.
Nf3 {[%clk 0:03:01]} 4... Nc6 {[%clk 0:03:00.6]} 5. d4 {[%clk 0:03:01.5]} 5...
e6 {[%clk 0:02:59.9]} 6. Na3 {[%clk 0:03:01.9]} 6... Nf6 {[%clk 0:02:58.6]} 7.
Bc4 {[%clk 0:03:00.4]} 7... Qe4+ {[%clk 0:02:51.3]} 8. Be2 {[%clk 0:03:00.4]}
8... Be7 {[%clk 0:02:37.2]} 9. O-O {[%clk 0:02:57.6]} 9... O-O {[%clk
0:02:36.7]} 10. Nc4 {[%clk 0:02:41.1]} 10... cxd4 {[%clk 0:02:32.8]} 11. cxd4
{[%clk 0:02:37.8]} 11... Rd8 {[%clk 0:02:20.9]} 12. Be3 {[%clk 0:02:36.4]} 12...
Bd7 {[%clk 0:01:51.1]} 13. Nce5 {[%clk 0:02:22.5]} 13... Rac8 {[%clk 0:01:32.6]}
14. Qb3 {[%clk 0:02:19.1]} 14... Nxe5 {[%clk 0:01:15.5]} 15. Nxe5 {[%clk
0:02:17.7]} 15... Qc2 {[%clk 0:00:56.4]} 16. Bf3 {[%clk 0:02:01.6]} 16... b6
{[%clk 0:00:42.8]} 17. Nxd7 {[%clk 0:02:00]} 17... Nxd7 {[%clk 0:00:35.4]} 18.
Rfc1 {[%clk 0:01:55.2]} 18... Qxb3 {[%clk 0:00:34.9]} 19. axb3 {[%clk
0:01:56.1]} 19... a5 {[%clk 0:00:33.5]} 20. Bf4 {[%clk 0:01:40.8]} 20... f6
{[%clk 0:00:19.2]} 21. Bb7 {[%clk 0:01:40]} 21... Rxc1+ {[%clk 0:00:19]} 22.
Rxc1 {[%clk 0:01:40.9]} 22... e5 {[%clk 0:00:19.6]} 23. dxe5 {[%clk 0:01:28.1]}
23... Nc5 {[%clk 0:00:20]} 24. Bc6 {[%clk 0:01:09.4]} 24... Nd3 {[%clk 0:00:18]}
25. Bf3 {[%clk 0:00:45.6]} 25... Nxf4 {[%clk 0:00:16.3]} 26. e6 {[%clk
0:00:43.5]} 26... Bc5 {[%clk 0:00:15.3]} 27. Re1 {[%clk 0:00:33.7]} 27... Kf8
{[%clk 0:00:13.1]} 28. g3 {[%clk 0:00:31.2]} 28... Nd3 {[%clk 0:00:13.2]} 29.
Rd1 {[%clk 0:00:28.8]} 29... Ke7 {[%clk 0:00:12.3]} 30. Kg2 {[%clk 0:00:26.2]}
30... Nxf2 {[%clk 0:00:11.7]} 0-1

[Event "Early-Titled-Tuesday-Blitz-July-09-2024"]
[Site "Chess.com"]
[Date "2024.07.09"]
[Round "1"]
[White "Goryachkina"]
[Black "patzer-reloaded"]
[Result "1-0"]
[WhiteElo "2676"]
[BlackElo "2363"]
[TimeControl "180+1"]
[EndTime "8:06:45 PDT"]
[Termination "Goryachkina won on time"]

1. e4 {[%clk 0:03:00.7]} 1... d6 {[%clk 0:03:00.2]} 2. d4 {[%clk 0:03:00.3]}
2... Nf6 {[%clk 0:03:00.9]} 3. Nc3 {[%clk 0:02:59.9]} 3... g6 {[%clk 0:03:01.2]}
4. Be3 {[%clk 0:02:58.2]} 4... c6 {[%clk 0:02:55.4]} 5. Nf3 {[%clk 0:02:56.9]}
5... Bg4 {[%clk 0:02:46.9]} 6. h3 {[%clk 0:02:42.2]} 6... Bxf3 {[%clk
0:02:45.6]} 7. Qxf3 {[%clk 0:02:42.3]} 7... Bg7 {[%clk 0:02:43.9]} 8. g4 {[%clk
0:02:29]} 8... Nbd7 {[%clk 0:02:35]} 9. g5 {[%clk 0:02:24.8]} 9... Nh5 {[%clk
0:02:28.5]} 10. Be2 {[%clk 0:02:24.7]} 10... Qb6 {[%clk 0:02:16]} 11. O-O-O
{[%clk 0:02:21.1]} 11... O-O {[%clk 0:01:48.3]} 12. Qg4 {[%clk 0:02:11.7]} 12...
Rad8 {[%clk 0:01:21.6]} 13. Qh4 {[%clk 0:02:11.4]} 13... Qa5 {[%clk 0:01:14.1]}
14. Bxh5 {[%clk 0:02:06.3]} 14... gxh5 {[%clk 0:01:13.9]} 15. Qxh5 {[%clk
0:02:05.5]} 15... b5 {[%clk 0:01:14]} 16. Kb1 {[%clk 0:02:05.2]} 16... b4 {[%clk
0:01:13]} 17. Ne2 {[%clk 0:02:00.5]} 17... c5 {[%clk 0:01:11.6]} 18. Ng3 {[%clk
0:01:54.9]} 18... e6 {[%clk 0:01:09.6]} 19. f4 {[%clk 0:01:43.3]} 19... Nb6
{[%clk 0:01:04]} 20. f5 {[%clk 0:01:40.1]} 20... Nc4 {[%clk 0:01:01.3]} 21. f6
{[%clk 0:01:27.7]} 21... Nxe3 {[%clk 0:00:54.3]} 22. fxg7 {[%clk 0:01:27.3]}
22... Rfe8 {[%clk 0:00:45.1]} 23. Qh6 {[%clk 0:01:26.6]} 23... cxd4 {[%clk
0:00:12.5]} 24. Nh5 {[%clk 0:01:16.6]} 24... f5 {[%clk 0:00:08.1]} 25. Nf6+
{[%clk 0:01:00.3]} 25... Kf7 {[%clk 0:00:08.1]} 26. Nxe8 {[%clk 0:00:59.8]}
26... Rxe8 {[%clk 0:00:08.9]} 27. Rxd4 {[%clk 0:00:59.9]} 27... Qe5 {[%clk
0:00:06.9]} 28. g6+ {[%clk 0:00:56.2]} 28... hxg6 {[%clk 0:00:04.4]} 29. Qxe3
{[%clk 0:00:56.4]} 29... d5 {[%clk 0:00:01.5]} 30. Rxb4 {[%clk 0:00:50.8]} 30...
Kxg7 {[%clk 0:00:01.3]} 31. Qxa7+ {[%clk 0:00:49.6]} 31... Kh6 {[%clk
0:00:01.2]} 32. exd5 {[%clk 0:00:47]} 32... exd5 {[%clk 0:00:02.1]} 33. Rd1
{[%clk 0:00:45.6]} 33... d4 {[%clk 0:00:01]} 34. Qxd4 {[%clk 0:00:45.1]} 34...
f4 {[%clk 0:00:01.5]} 35. Qxe5 {[%clk 0:00:45]} 35... Rxe5 {[%clk 0:00:02.3]}
36. Rxf4 {[%clk 0:00:45.4]} 36... Re1 {[%clk 0:00:02.7]} 37. Rxe1 {[%clk
0:00:45.3]} 1-0

[Event "Early-Titled-Tuesday-Blitz-July-09-2024"]
[Site "Chess.com"]
[Date "2024.07.09"]
[Round "1"]
[White "AndresDelgado77"]
[Black "Willhaven3"]
[Result "0-1"]
[WhiteElo "2336"]
[BlackElo "2656"]
[TimeControl "180+1"]
[EndTime "8:06:47 PDT"]
[Termination "Willhaven3 won on time"]

1. e4 {[%clk 0:03:00]} 1... c5 {[%clk 0:02:59.9]} 2. Nf3 {[%clk 0:02:59.6]} 2...
Nc6 {[%clk 0:03:00]} 3. b4 {[%clk 0:02:56.6]} 3... e5 {[%clk 0:02:57.3]} 4. b5
{[%clk 0:02:51.5]} 4... Nd4 {[%clk 0:02:57.2]} 5. Nxd4 {[%clk 0:02:49]} 5...
cxd4 {[%clk 0:02:55.8]} 6. c3 {[%clk 0:02:47.7]} 6... Bc5 {[%clk 0:02:50.4]} 7.
cxd4 {[%clk 0:02:32.4]} 7... Bxd4 {[%clk 0:02:50.2]} 8. Nc3 {[%clk 0:02:32.7]}
8... Nf6 {[%clk 0:02:44.6]} 9. Bc4 {[%clk 0:02:29.3]} 9... O-O {[%clk
0:02:37.8]} 10. Qe2 {[%clk 0:02:19.8]} 10... d5 {[%clk 0:02:17]} 11. exd5 {[%clk
0:02:16.7]} 11... Bg4 {[%clk 0:02:04]} 12. Qd3 {[%clk 0:02:13.6]} 12... Rc8
{[%clk 0:01:48.8]} 13. O-O {[%clk 0:02:05.9]} 13... Qc7 {[%clk 0:01:39.7]} 14.
Bb3 {[%clk 0:02:01.1]} 14... Rfd8 {[%clk 0:01:24.8]} 15. Bb2 {[%clk 0:01:54.7]}
15... Qd7 {[%clk 0:01:24.7]} 16. Qb1 {[%clk 0:01:34.4]} 16... Bf5 {[%clk
0:01:10.2]} 17. Qd1 {[%clk 0:01:25.8]} 17... Bd3 {[%clk 0:01:08.4]} 18. Re1
{[%clk 0:01:25.4]} 18... Ng4 {[%clk 0:01:02]} 19. Re3 {[%clk 0:01:10.6]} 19...
Nxe3 {[%clk 0:00:52.7]} 20. dxe3 {[%clk 0:01:10.2]} 20... Bxc3 {[%clk
0:00:52.9]} 21. Bxc3 {[%clk 0:01:03.8]} 21... Rxc3 {[%clk 0:00:53.8]} 22. Qd2
{[%clk 0:01:03.1]} 22... Rdc8 {[%clk 0:00:51.3]} 23. d6 {[%clk 0:00:44.2]} 23...
Qxd6 {[%clk 0:00:47.4]} 24. Rd1 {[%clk 0:00:29.8]} 24... e4 {[%clk 0:00:46.8]}
25. f4 {[%clk 0:00:24.7]} 25... g6 {[%clk 0:00:44]} 26. Qf2 {[%clk 0:00:22.1]}
26... Rc1 {[%clk 0:00:41.4]} 27. Qd2 {[%clk 0:00:17.1]} 27... Qc5 {[%clk
0:00:38]} 28. h3 {[%clk 0:00:14.4]} 28... Rxd1+ {[%clk 0:00:37.6]} 29. Qxd1
{[%clk 0:00:11.3]} 29... Qc1 {[%clk 0:00:36.9]} 30. Qxc1 {[%clk 0:00:11.2]}
30... Rxc1+ {[%clk 0:00:37.8]} 31. Kh2 {[%clk 0:00:11.9]} 31... Kg7 {[%clk
0:00:37.4]} 0-1

[Event "Early-Titled-Tuesday-Blitz-July-09-2024"]
[Site "Chess.com"]
[Date "2024.07.09"]
[Round "1"]
[White "Chernov_Alexander_A"]
[Black "Stanbad1"]
[Result "0-1"]
[WhiteElo "2266"]
[BlackElo "2607"]
[TimeControl "180+1"]
[EndTime "8:06:47 PDT"]
[Termination "Stanbad1 won on time"]

1. d4 {[%clk 0:02:39]} 1... Nf6 {[%clk 0:02:59]} 2. Nc3 {[%clk 0:02:38.8]} 2...
d5 {[%clk 0:02:58.5]} 3. Bg5 {[%clk 0:02:38.4]} 3... e6 {[%clk 0:02:57.7]} 4. e4
{[%clk 0:02:38.2]} 4... Bb4 {[%clk 0:02:57.6]} 5. e5 {[%clk 0:02:37.7]} 5... h6
{[%clk 0:02:57.6]} 6. Bd2 {[%clk 0:02:37.7]} 6... Bxc3 {[%clk 0:02:57.9]} 7.
Bxc3 {[%clk 0:02:37.9]} 7... Ne4 {[%clk 0:02:58.2]} 8. Ba5 {[%clk 0:02:38]} 8...
b6 {[%clk 0:02:54.7]} 9. Bd2 {[%clk 0:02:37.8]} 9... c5 {[%clk 0:02:54]} 10. c3
{[%clk 0:02:36.4]} 10... Nc6 {[%clk 0:02:53.7]} 11. Be3 {[%clk 0:02:35.8]} 11...
cxd4 {[%clk 0:02:47.7]} 12. cxd4 {[%clk 0:02:35.7]} 12... Bd7 {[%clk 0:02:47.6]}
13. f3 {[%clk 0:02:18.1]} 13... Ng5 {[%clk 0:02:45.9]} 14. Qd2 {[%clk
0:02:07.9]} 14... f6 {[%clk 0:02:43.4]} 15. exf6 {[%clk 0:01:53.9]} 15... Qxf6
{[%clk 0:02:41.4]} 16. Bd3 {[%clk 0:01:33.5]} 16... O-O {[%clk 0:02:38.7]} 17.
Ne2 {[%clk 0:01:32.6]} 17... Nf7 {[%clk 0:02:27.1]} 18. O-O {[%clk 0:01:31.5]}
18... Nd6 {[%clk 0:02:25.1]} 19. Rae1 {[%clk 0:01:12]} 19... Nf5 {[%clk
0:02:18.2]} 20. Bf2 {[%clk 0:01:04.3]} 20... Rac8 {[%clk 0:02:15.6]} 21. Bxf5
{[%clk 0:00:40.7]} 21... Qxf5 {[%clk 0:02:10.3]} 22. Nc3 {[%clk 0:00:32.4]}
22... Kh7 {[%clk 0:02:01.7]} 23. Re2 {[%clk 0:00:29.9]} 23... e5 {[%clk
0:01:45.2]} 24. dxe5 {[%clk 0:00:28.5]} 24... Be6 {[%clk 0:01:45.4]} 25. Rfe1
{[%clk 0:00:20.2]} 25... d4 {[%clk 0:01:42.7]} 26. Ne4 {[%clk 0:00:19.6]} 26...
Qxe5 {[%clk 0:01:36.6]} 27. Bg3 {[%clk 0:00:15.8]} 27... Qd5 {[%clk 0:01:33.2]}
28. Nd6 {[%clk 0:00:12.6]} 28... Bf5 {[%clk 0:01:32.6]} 29. Nxc8 {[%clk
0:00:10.1]} 29... Rxc8 {[%clk 0:01:33.5]} 30. Rd1 {[%clk 0:00:06.8]} 30... d3
{[%clk 0:01:32.5]} 31. Re3 {[%clk 0:00:06.5]} 31... Qxa2 {[%clk 0:01:27]} 32.
Rxd3 {[%clk 0:00:06.2]} 32... Bxd3 {[%clk 0:01:24.9]} 33. Qxd3+ {[%clk
0:00:06.6]} 33... Kh8 {[%clk 0:01:22.4]} 34. Qf5 {[%clk 0:00:06.1]} 34... Re8
{[%clk 0:01:14.6]} 35. Qg6 {[%clk 0:00:04.8]} 35... Qe6 {[%clk 0:01:13.8]} 36.
Qxe6 {[%clk 0:00:03.7]} 36... Rxe6 {[%clk 0:01:14.7]} 37. Rd7 {[%clk 0:00:02.6]}
37... Re2 {[%clk 0:01:13.7]} 38. h4 {[%clk 0:00:02]} 38... Rxb2 {[%clk
0:01:12.5]} 39. Rc7 {[%clk 0:00:02.3]} 39... Rc2 {[%clk 0:01:12.7]} 40. Be5
{[%clk 0:00:01.6]} 40... Kg8 {[%clk 0:01:06.5]} 41. Bxg7 {[%clk 0:00:01.9]}
41... a5 {[%clk 0:01:03.2]} 42. Bxh6 {[%clk 0:00:01.8]} 42... Nd4 {[%clk
0:01:02.8]} 0-1

[Event "Early-Titled-Tuesday-Blitz-July-09-2024"]
[Site "Chess.com"]
[Date "2024.07.09"]
[Round "1"]
[White "IamSchrodingersCat"]
[Black "Adrian-thorsen"]
[Result "1-0"]
[WhiteElo "2644"]
[BlackElo "2325"]
[TimeControl "180+1"]
[EndTime "8:06:48 PDT"]
[Termination "IamSchrodingersCat won by checkmate"]

1. e4 {[%clk 0:03:00.9]} 1... e5 {[%clk 0:02:56.6]} 2. Nf3 {[%clk 0:03:00.3]}
2... Nc6 {[%clk 0:02:54.7]} 3. Bb5 {[%clk 0:03:00.4]} 3... a6 {[%clk 0:02:53.5]}
4. Ba4 {[%clk 0:03:00.3]} 4... d6 {[%clk 0:02:53.6]} 5. c3 {[%clk 0:02:59.7]}
5... f5 {[%clk 0:02:52.6]} 6. exf5 {[%clk 0:02:57.5]} 6... Bxf5 {[%clk
0:02:53.5]} 7. O-O {[%clk 0:02:54.3]} 7... Bd3 {[%clk 0:02:50.8]} 8. Re1 {[%clk
0:02:52.1]} 8... Nf6 {[%clk 0:02:50.2]} 9. Na3 {[%clk 0:02:30]} 9... Be7 {[%clk
0:02:42.4]} 10. Bc2 {[%clk 0:02:26.9]} 10... Bxc2 {[%clk 0:02:39.8]} 11. Nxc2
{[%clk 0:02:26.8]} 11... O-O {[%clk 0:02:40.3]} 12. d4 {[%clk 0:02:23.2]} 12...
e4 {[%clk 0:02:38.6]} 13. Nd2 {[%clk 0:02:23.2]} 13... d5 {[%clk 0:02:37.8]} 14.
f3 {[%clk 0:02:03.5]} 14... exf3 {[%clk 0:02:35.5]} 15. Nxf3 {[%clk 0:02:04.4]}
15... Ne4 {[%clk 0:02:35.4]} 16. Ne3 {[%clk 0:01:52.2]} 16... Qd6 {[%clk
0:02:26.2]} 17. Qb3 {[%clk 0:01:30.3]} 17... Rad8 {[%clk 0:01:42.3]} 18. Qxd5+
{[%clk 0:01:22.8]} 18... Qxd5 {[%clk 0:01:40.6]} 19. Nxd5 {[%clk 0:01:23.7]}
19... Rxd5 {[%clk 0:01:36.3]} 20. Rxe4 {[%clk 0:01:23.2]} 20... Bf6 {[%clk
0:01:33.8]} 21. Bf4 {[%clk 0:01:20.2]} 21... Rd7 {[%clk 0:01:32.3]} 22. Rae1
{[%clk 0:01:17.7]} 22... Ne7 {[%clk 0:01:30.1]} 23. Bg5 {[%clk 0:01:10.6]} 23...
Nd5 {[%clk 0:01:27]} 24. Bxf6 {[%clk 0:01:06]} 24... Nxf6 {[%clk 0:01:26.2]} 25.
Re7 {[%clk 0:01:04]} 25... Rf7 {[%clk 0:01:24.9]} 26. R7e2 {[%clk 0:00:58.5]}
26... Rd5 {[%clk 0:01:16.7]} 27. Re5 {[%clk 0:00:52.4]} 27... Rd6 {[%clk
0:01:15.2]} 28. Ng5 {[%clk 0:00:49]} 28... Rf8 {[%clk 0:01:11]} 29. Re7 {[%clk
0:00:48.4]} 29... h6 {[%clk 0:01:06.2]} 30. Ne6 {[%clk 0:00:45.8]} 30... Rf7
{[%clk 0:01:02.1]} 31. Nxc7 {[%clk 0:00:41.5]} 31... Rc6 {[%clk 0:00:52.3]} 32.
Na8 {[%clk 0:00:10.9]} 32... Kf8 {[%clk 0:00:45.6]} 33. R7e6 {[%clk 0:00:07.7]}
33... Nd5 {[%clk 0:00:25.2]} 34. Re8# {[%clk 0:00:07.1]} 1-0

[Event "Early-Titled-Tuesday-Blitz-July-09-2024"]
[Site "Chess.com"]
[Date "2024.07.09"]
[Round "1"]
[White "GMAneta"]
[Black "Me_ch_an"]
[Result "1-0"]
[WhiteElo "2639"]
[BlackElo "2317"]
[TimeControl "180+1"]
[EndTime "8:06:49 PDT"]
[Termination "GMAneta won by resignation"]

1. d4 {[%clk 0:02:57.5]} 1... d5 {[%clk 0:02:59.8]} 2. Nf3 {[%clk 0:02:46.6]}
2... Nf6 {[%clk 0:02:57]} 3. c4 {[%clk 0:02:46.7]} 3... dxc4 {[%clk 0:02:55.7]}
4. e3 {[%clk 0:02:45.1]} 4... e6 {[%clk 0:02:55.6]} 5. Bxc4 {[%clk 0:02:45]}
5... a6 {[%clk 0:02:56.3]} 6. Bd3 {[%clk 0:02:41.5]} 6... c5 {[%clk 0:02:56]} 7.
O-O {[%clk 0:02:40.7]} 7... b5 {[%clk 0:02:55.9]} 8. a3 {[%clk 0:02:35.6]} 8...
Bb7 {[%clk 0:02:55.9]} 9. Nc3 {[%clk 0:02:35]} 9... Nc6 {[%clk 0:02:49.7]} 10.
dxc5 {[%clk 0:02:29.7]} 10... Bxc5 {[%clk 0:02:49.2]} 11. b4 {[%clk 0:02:30.3]}
11... Be7 {[%clk 0:02:47.7]} 12. Bb2 {[%clk 0:02:30.9]} 12... O-O {[%clk
0:02:47.8]} 13. Ne4 {[%clk 0:02:30.9]} 13... Nxe4 {[%clk 0:02:34.4]} 14. Bxe4
{[%clk 0:02:30.1]} 14... Qxd1 {[%clk 0:02:35.3]} 15. Rfxd1 {[%clk 0:02:29.7]}
15... Rfd8 {[%clk 0:02:35.5]} 16. Rac1 {[%clk 0:02:25.6]} 16... Rxd1+ {[%clk
0:02:33.2]} 17. Rxd1 {[%clk 0:02:25.5]} 17... Rd8 {[%clk 0:02:33.9]} 18. Rc1
{[%clk 0:02:25.7]} 18... Rc8 {[%clk 0:02:24.6]} 19. Ne5 {[%clk 0:02:22.9]} 19...
Nxe5 {[%clk 0:02:22]} 20. Bxb7 {[%clk 0:02:20]} 20... Rxc1+ {[%clk 0:02:18]} 21.
Bxc1 {[%clk 0:02:19.9]} 21... Nd3 {[%clk 0:02:09.2]} 22. Bd2 {[%clk 0:02:19]}
22... a5 {[%clk 0:02:01]} 23. bxa5 {[%clk 0:02:18.3]} 23... Bxa3 {[%clk
0:01:59.6]} 24. Bc6 {[%clk 0:02:12.8]} 24... Bc5 {[%clk 0:00:44.7]} 25. Bxb5
{[%clk 0:02:08.5]} 25... Ne5 {[%clk 0:00:43]} 26. a6 {[%clk 0:02:06.5]} 26...
Bb6 {[%clk 0:00:25.7]} 27. Ba5 {[%clk 0:02:03.6]} 27... Ba7 {[%clk 0:00:24.2]}
28. Bc7 {[%clk 0:02:02.5]} 28... Ng6 {[%clk 0:00:22.9]} 29. Kf1 {[%clk
0:01:58.4]} 29... Kf8 {[%clk 0:00:22.8]} 30. Bd6+ {[%clk 0:01:57.8]} 30... Kg8
{[%clk 0:00:20.6]} 31. Ke2 {[%clk 0:01:57.4]} 31... f6 {[%clk 0:00:20.9]} 32.
Kd3 {[%clk 0:01:56.8]} 32... Kf7 {[%clk 0:00:21.3]} 33. Kc4 {[%clk 0:01:56.8]}
33... Ne5+ {[%clk 0:00:20.3]} 34. Kb4 {[%clk 0:01:55.7]} 34... Ng4 {[%clk
0:00:07.1]} 35. Bc5 {[%clk 0:01:55.5]} 35... Bb8 {[%clk 0:00:06.8]} 36. f3
{[%clk 0:01:55.1]} 36... Nxh2 {[%clk 0:00:06]} 37. Ka4 {[%clk 0:01:47.4]} 37...
h5 {[%clk 0:00:04.9]} 38. Bd6 {[%clk 0:01:46.5]} 38... Ba7 {[%clk 0:00:03.2]}
39. Bxh2 {[%clk 0:01:46.2]} 39... Bxe3 {[%clk 0:00:03.9]} 40. Bb8 {[%clk
0:01:41.8]} 40... g5 {[%clk 0:00:04.2]} 41. a7 {[%clk 0:01:42]} 41... Bxa7
{[%clk 0:00:04.3]} 42. Bxa7 {[%clk 0:01:42.3]} 42... Kg6 {[%clk 0:00:04.6]} 43.
Bd3+ {[%clk 0:01:41.2]} 43... f5 {[%clk 0:00:04.7]} 44. Bd4 {[%clk 0:01:40.4]}
44... h4 {[%clk 0:00:04.1]} 45. Kb4 {[%clk 0:01:39]} 45... Kh5 {[%clk
0:00:03.6]} 46. Kc5 {[%clk 0:01:37]} 46... h3 {[%clk 0:00:03.9]} 47. gxh3 {[%clk
0:01:35.9]} 47... Kh4 {[%clk 0:00:04.8]} 48. Kd6 {[%clk 0:01:35.1]} 48... Kxh3
{[%clk 0:00:04.5]} 49. Kxe6 {[%clk 0:01:35.1]} 49... g4 {[%clk 0:00:04.5]} 50.
f4 {[%clk 0:01:34.5]} 50... g3 {[%clk 0:00:04.5]} 51. Kxf5 {[%clk 0:01:34.4]}
51... g2 {[%clk 0:00:04.5]} 52. Be4 {[%clk 0:01:32.1]} 52... Kh4 {[%clk
0:00:04.8]} 53. Bxg2 {[%clk 0:01:31]} 1-0

[Event "Early-Titled-Tuesday-Blitz-July-09-2024"]
[Site "Chess.com"]
[Date "2024.07.09"]
[Round "1"]
[White "Chessbard1972"]
[Black "Flaccidmoves"]
[Result "0-1"]
[WhiteElo "2184"]
[BlackElo "2577"]
[TimeControl "180+1"]
[EndTime "8:06:49 PDT"]
[Termination "Flaccidmoves won by checkmate"]

1. e4 {[%clk 0:02:59.3]} 1... g6 {[%clk 0:02:56.8]} 2. d4 {[%clk 0:02:58.8]}
2... Bg7 {[%clk 0:02:56.5]} 3. c4 {[%clk 0:02:58.6]} 3... d6 {[%clk 0:02:56.3]}
4. Nc3 {[%clk 0:02:58.1]} 4... Nc6 {[%clk 0:02:54.9]} 5. Be3 {[%clk 0:02:57.1]}
5... e5 {[%clk 0:02:43.4]} 6. Nge2 {[%clk 0:02:56]} 6... Nf6 {[%clk 0:02:40.7]}
7. f3 {[%clk 0:02:55.4]} 7... exd4 {[%clk 0:02:37.2]} 8. Nxd4 {[%clk 0:02:54.8]}
8... O-O {[%clk 0:02:36.3]} 9. Nxc6 {[%clk 0:02:54.2]} 9... bxc6 {[%clk
0:02:23.9]} 10. Qd2 {[%clk 0:02:53.8]} 10... Rb8 {[%clk 0:02:08.6]} 11. Be2
{[%clk 0:02:52.5]} 11... a5 {[%clk 0:02:01.1]} 12. b3 {[%clk 0:02:50.1]} 12...
Re8 {[%clk 0:01:58.2]} 13. O-O {[%clk 0:02:48.3]} 13... d5 {[%clk 0:01:54.9]}
14. cxd5 {[%clk 0:02:19.1]} 14... cxd5 {[%clk 0:01:54.2]} 15. exd5 {[%clk
0:02:19.2]} 15... Bb7 {[%clk 0:01:23.5]} 16. Bc4 {[%clk 0:02:15.6]} 16... Qd7
{[%clk 0:00:58.9]} 17. Bg5 {[%clk 0:02:01.8]} 17... h6 {[%clk 0:00:53.1]} 18.
Bxh6 {[%clk 0:01:55.4]} 18... Rbd8 {[%clk 0:00:37]} 19. Bxg7 {[%clk 0:01:53.2]}
19... Kxg7 {[%clk 0:00:37.9]} 20. Rad1 {[%clk 0:01:51.8]} 20... Qd6 {[%clk
0:00:37.9]} 21. Qd4 {[%clk 0:01:49.7]} 21... Rh8 {[%clk 0:00:36.8]} 22. g3
{[%clk 0:01:45.5]} 22... Rh3 {[%clk 0:00:36.6]} 23. Rf2 {[%clk 0:01:42.7]} 23...
Rdh8 {[%clk 0:00:33]} 24. Rg2 {[%clk 0:01:41.9]} 24... Kg8 {[%clk 0:00:32.2]}
25. Re1 {[%clk 0:01:27.2]} 25... Bc8 {[%clk 0:00:30.9]} 26. Ne4 {[%clk 0:01:22]}
26... Nxe4 {[%clk 0:00:28.6]} 27. Rxe4 {[%clk 0:01:22]} 27... Bd7 {[%clk
0:00:29]} 28. f4 {[%clk 0:01:14.1]} 28... f5 {[%clk 0:00:22.6]} 29. Re5 {[%clk
0:01:11.9]} 29... R8h7 {[%clk 0:00:22.8]} 30. Rge2 {[%clk 0:01:09]} 30... Rf7
{[%clk 0:00:21.8]} 31. a4 {[%clk 0:01:01.3]} 31... Rhh7 {[%clk 0:00:21.3]} 32.
R5e3 {[%clk 0:00:59]} 32... Rhg7 {[%clk 0:00:21.1]} 33. Kg2 {[%clk 0:00:54.7]}
33... g5 {[%clk 0:00:21.4]} 34. fxg5 {[%clk 0:00:50.7]} 34... f4 {[%clk
0:00:21.5]} 35. Re5 {[%clk 0:00:47.1]} 35... f3+ {[%clk 0:00:20.3]} 36. Kg1
{[%clk 0:00:44]} 36... fxe2 {[%clk 0:00:21.2]} 37. Bxe2 {[%clk 0:00:41.2]} 37...
Rf8 {[%clk 0:00:18.9]} 38. h4 {[%clk 0:00:39.6]} 38... Re7 {[%clk 0:00:18.5]}
39. Rxe7 {[%clk 0:00:36.3]} 39... Qxe7 {[%clk 0:00:19.4]} 40. Bf3 {[%clk
0:00:34.1]} 40... Rxf3 {[%clk 0:00:19]} 41. Kg2 {[%clk 0:00:31.9]} 41... Qe2+
{[%clk 0:00:18.9]} 42. Kg1 {[%clk 0:00:32.1]} 42... Rf1# {[%clk 0:00:19.2]} 0-1